fUST/lending_fUST_20250220
["ID","MTS","AMOUNT","RATE_DAILY","PERIOD"]
[353751969,1740010249233,-500.0,0.00014273,2]
[353751970,1740010249242,-500.0,0.00014273,2]
[353751971,1740010249252,-500.0,0.00014273,2]
[353751972,1740010249262,-417.6237776,0.00014273,2]
[353751973,1740010249272,-500.0,0.00014273,2]
[353751974,1740010249282,-500.0,0.00014273,2]
[353751975,1740010249292,-500.0,0.00014273,2]
[353751976,1740010249301,-500.0,0.00014273,2]
[353751977,1740010249311,-500.0,0.00014273,2]
[353751978,1740010249321,-500.0,0.00014273,2]
[353751979,1740010249331,-789.43,0.00014273,2]
[353751980,1740010249340,-12866.34,0.00014273,2]
[353751981,1740010249351,-4092.36,0.00014273,2]
[353751982,1740010249361,-500.0,0.00014273,2]
[353751983,1740010249372,-500.0,0.00014273,2]
[353751984,1740010249382,-500.0,0.00014273,2]
[353751985,1740010249391,-500.0,0.00014273,2]
[353751986,1740010249401,-671.53,0.00014273,2]
[353751987,1740010249411,-583.34,0.00014273,2]
[353751988,1740010249420,-969.4,0.00014273,2]
[353751989,1740010249430,-1702.23,0.00014273,2]
[353751990,1740010249439,-1017.11,0.00014273,2]
[353751991,1740010249449,-1044.34,0.00014273,2]
[353751992,1740010249458,-538.86,0.00014273,2]
[353751993,1740010249467,-500.0,0.00014273,2]
[353751994,1740010249477,-500.0,0.00014273,2]
[353751995,1740010249487,-513.35,0.00014273,2]
[353751996,1740010249497,-328.06384719,0.00014273,2]
[353751997,1740010249507,-500.0,0.00014273,2]
[353751998,1740010249518,-531.17,0.00014273,2]
[353751999,1740010249531,-551.5,0.00014273,2]
[353752000,1740010249572,-1250.49,0.00014273,2]
[353752001,1740010249584,-500.0,0.00014273,2]
[353752002,1740010249595,-4536.63,0.00014273,2]
[353752003,1740010249605,-500.0,0.00014273,2]
[353752004,1740010249616,-500.0,0.00014273,2]
[353752005,1740010249626,-1184.6,0.00014273,2]
[353752006,1740010249635,-1054.85,0.00014273,2]
[353752007,1740010249645,-698.44,0.00014273,2]
[353752008,1740010249655,-692.95,0.00014273,2]
[353752009,1740010249665,-500.0,0.00014273,2]
[353752010,1740010249676,-545.33,0.00014273,2]
[353752011,1740010249686,-151.0,0.000143,2]
[353752012,1740010249696,-244.052745,0.00014356,2]
[353752013,1740010249707,-244.052745,0.00014356,2]
[353752014,1740010249717,-1460.899831,0.00014356,2]
[353752015,1740010249727,-1460.899831,0.00014356,2]
[353752016,1740010249737,-500.0,0.00014356,2]
[353752017,1740010249746,-500.0,0.00014356,2]
[353752018,1740010249757,-500.0,0.00014356,2]
[353752019,1740010249768,-500.0,0.00014356,2]
[353752020,1740010249777,-500.0,0.00014356,2]
[353752021,1740010249787,-500.0,0.00014356,2]
[353752022,1740010249797,-500.0,0.00014356,2]
[353752023,1740010249807,-500.0,0.00014356,2]
[353752024,1740010249816,-180.44,0.00014356,2]
[353752025,1740010249826,-500.0,0.00014356,2]
[353752026,1740010249835,-500.0,0.00014356,2]
[353752027,1740010249845,-789.43,0.00014356,2]
[353752028,1740010249854,-12866.34,0.00014356,2]
[353752029,1740010249867,-4092.36,0.00014356,2]
[353752030,1740010249877,-500.0,0.00014356,2]
[353752031,1740010249887,-500.0,0.00014356,2]
[353752032,1740010249898,-500.0,0.00014356,2]
[353752033,1740010249908,-500.0,0.00014356,2]
[353752034,1740010249919,-671.53,0.00014356,2]
[353752035,1740010249930,-583.34,0.00014356,2]
[353752036,1740010249940,-969.4,0.00014356,2]
[353752037,1740010249949,-1702.23,0.00014356,2]
[353752038,1740010249959,-1017.11,0.00014356,2]
[353752039,1740010249969,-1044.34,0.00014356,2]
[353752040,1740010249978,-538.86,0.00014356,2]
[353752041,1740010249988,-500.0,0.00014356,2]
[353752042,1740010249998,-500.0,0.00014356,2]
[353752043,1740010250009,-513.35,0.00014356,2]
[353752044,1740010250020,-500.0,0.00014356,2]
[353752045,1740010250030,-531.17,0.00014356,2]
[353752046,1740010250039,-551.5,0.00014356,2]
[353752047,1740010250048,-1250.49,0.00014356,2]
[353752048,1740010250058,-500.0,0.00014356,2]
[353752049,1740010250067,-4536.63,0.00014356,2]
[353752050,1740010250076,-500.0,0.00014356,2]
[353752051,1740010250086,-500.0,0.00014356,2]
[353752052,1740010250095,-1184.6,0.00014356,2]
[353752053,1740010250105,-1054.85,0.00014356,2]
[353752054,1740010250114,-698.44,0.00014356,2]
[353752055,1740010250123,-692.95,0.00014356,2]
[353752056,1740010250132,-500.0,0.00014356,2]
[353752057,1740010250141,-545.33,0.00014356,2]
[353752058,1740010250150,-647.8449573,0.00014361,2]
[353752059,1740010250159,-557.1188801,0.00014361,2]
[353752060,1740010250168,-557.1188801,0.00014361,2]
[353752061,1740010250177,-557.1188801,0.00014361,2]
[353752062,1740010250187,-557.1188801,0.00014361,2]
[353752063,1740010250196,-557.1188801,0.00014361,2]
[353752064,1740010250206,-557.1188801,0.00014361,2]
[353752065,1740010250215,-557.1188801,0.00014361,2]
[353752066,1740010250224,-557.1188801,0.00014361,2]
[353752067,1740010250233,-557.1188801,0.00014361,2]
[353752068,1740010250243,-557.1188801,0.00014361,2]
[353752069,1740010250253,-557.1188801,0.00014361,2]
[353752070,1740010250263,-557.1188801,0.00014361,2]
[353752071,1740010250272,-557.1188801,0.00014361,2]
[353752072,1740010250281,-557.1188801,0.00014361,2]
[353752073,1740010250290,-557.1188801,0.00014361,2]
[353752074,1740010250299,-151.0,0.000144,2]
[353752075,1740010250308,-179.71246006,0.000144,2]
[353752076,1740010250318,-500.0,0.00014421,2]
[353752077,1740010250327,-184.882004,0.00014438,2]
[353752078,1740010250336,-184.882004,0.00014438,2]
[353752079,1740010250345,-521.66,0.00014438,2]
[353752080,1740010250354,-206.3297401,0.00014438,2]
[353752081,1740010250363,-529.14,0.00014438,2]
[353752082,1740010250372,-500.0,0.00014438,2]
[353752083,1740010250381,-500.0,0.00014438,2]
[353752084,1740010250390,-500.0,0.00014438,2]
[353752085,1740010250399,-176.95,0.00014438,2]
[353752086,1740010250409,-286.37,0.00014438,2]
[353752087,1740010250417,-500.0,0.00014438,2]
[353752088,1740010250427,-500.0,0.00014438,2]
[353752089,1740010250436,-789.43,0.00014438,2]
[353752090,1740010250445,-12866.34,0.00014438,2]
[353752091,1740010250455,-4092.36,0.00014438,2]
[353752092,1740010250465,-500.0,0.00014438,2]
[353752093,1740010250475,-500.0,0.00014438,2]
[353752094,1740010250485,-500.0,0.00014438,2]
[353752095,1740010250495,-500.0,0.00014438,2]
[353752096,1740010250504,-671.53,0.00014438,2]
[353752097,1740010250514,-583.34,0.00014438,2]
[353752098,1740010250527,-969.4,0.00014438,2]
[353752099,1740010250539,-1702.23,0.00014438,2]
[353752100,1740010250549,-1017.11,0.00014438,2]
[353752101,1740010250559,-1044.34,0.00014438,2]
[353752102,1740010250569,-538.86,0.00014438,2]
[353752103,1740010250579,-500.0,0.00014438,2]
[353752104,1740010250590,-500.0,0.00014438,2]
[353752105,1740010250601,-513.35,0.00014438,2]
[353752106,1740010250613,-500.0,0.00014438,2]
[353752107,1740010250623,-531.17,0.00014438,2]
[353752108,1740010250633,-551.5,0.00014438,2]
[353752109,1740010250643,-1250.49,0.00014438,2]
[353752110,1740010250653,-500.0,0.00014438,2]
[353752111,1740010250663,-4536.63,0.00014438,2]
[353752112,1740010250673,-500.0,0.00014438,2]
[353752113,1740010250683,-500.0,0.00014438,2]
[353752114,1740010250693,-1184.6,0.00014438,2]
[353752115,1740010250703,-1054.85,0.00014438,2]
[353752116,1740010250712,-698.44,0.00014438,2]
[353752117,1740010250722,-692.95,0.00014438,2]
[353752118,1740010250732,-500.0,0.00014438,2]
[353752119,1740010250742,-545.33,0.00014438,2]
[353752120,1740010250751,-700.0,0.00014438,2]
[353752121,1740010250761,-557.1188801,0.00014454,2]
[353752122,1740010250771,-151.0,0.000145,2]
[353752123,1740010250780,-151.0,0.000145,2]
[353752124,1740010250790,-500.0,0.0001452,2]
[353752125,1740010250799,-633.92,0.0001452,2]
[353752126,1740010250809,-500.0,0.0001452,2]
[353752127,1740010250818,-500.0,0.0001452,2]
[353752128,1740010250828,-500.0,0.0001452,2]
[353752129,1740010250838,-789.43,0.0001452,2]
[353752130,1740010250849,-12866.34,0.0001452,2]
[353752131,1740010250859,-4092.36,0.0001452,2]
[353752132,1740010250868,-500.0,0.0001452,2]
[353752133,1740010250878,-500.0,0.0001452,2]
[353752134,1740010250887,-500.0,0.0001452,2]
[353752135,1740010250896,-500.0,0.0001452,2]
[353752136,1740010250907,-671.53,0.0001452,2]
[353752137,1740010250917,-583.34,0.0001452,2]
[353752138,1740010250927,-969.4,0.0001452,2]
[353752139,1740010250937,-1702.23,0.0001452,2]
[353752140,1740010250947,-1017.11,0.0001452,2]
[353752141,1740010250958,-1044.34,0.0001452,2]
[353752142,1740010250968,-538.86,0.0001452,2]
[353752143,1740010250978,-500.0,0.0001452,2]
[353752144,1740010250988,-500.0,0.0001452,2]
[353752145,1740010250998,-513.35,0.0001452,2]
[353752146,1740010251007,-500.0,0.0001452,2]
[353752147,1740010251017,-531.17,0.0001452,2]
[353752148,1740010251027,-551.5,0.0001452,2]
[353752149,1740010251036,-1250.49,0.0001452,2]
[353752150,1740010251046,-500.0,0.0001452,2]
[353752151,1740010251056,-4536.63,0.0001452,2]
[353752152,1740010251066,-500.0,0.0001452,2]
[353752153,1740010251075,-500.0,0.0001452,2]
[353752154,1740010251085,-1184.6,0.0001452,2]
[353752155,1740010251094,-1054.85,0.0001452,2]
[353752156,1740010251104,-698.44,0.0001452,2]
[353752157,1740010251113,-692.95,0.0001452,2]
[353752158,1740010251123,-500.0,0.0001452,2]
[353752159,1740010251132,-545.33,0.0001452,2]
[353752160,1740010251142,-400.69720656,0.00014544,2]
[353752161,1740010251151,-716.92604047,0.00014553,2]
[353752162,1740010251161,-716.92604047,0.00014553,2]
[353752163,1740010251171,-716.92604047,0.00014553,2]
[353752164,1740010251180,-716.92604047,0.00014553,2]
[353752165,1740010251190,-716.92604047,0.00014553,2]
[353752166,1740010251199,-716.92604047,0.00014553,2]
[353752167,1740010251209,-716.92604047,0.00014553,2]
[353752168,1740010251218,-716.92604047,0.00014553,2]
[353752169,1740010251227,-716.92604047,0.00014553,2]
[353752170,1740010251236,-716.92604047,0.00014553,2]
[353752171,1740010251246,-716.92604047,0.00014553,2]
[353752172,1740010251255,-716.92604047,0.00014553,2]
[353752173,1740010251264,-716.92604047,0.00014553,2]
[353752174,1740010251273,-716.92604047,0.00014553,2]
[353752175,1740010251283,-716.92604047,0.00014553,2]
[353752176,1740010251293,-716.92604047,0.00014553,2]
[353752177,1740010251303,-716.92604047,0.00014553,2]
[353752178,1740010251312,-716.92604047,0.00014553,2]
[353752179,1740010251322,-716.92604047,0.00014553,2]
[353752180,1740010251332,-716.92,0.00014553,2]
[353752181,1740010251342,-158.79014089,0.00014553,2]
[353752182,1740010251352,-158.79014089,0.00014553,2]
[353752183,1740010251362,-158.79014089,0.00014553,2]
[353752184,1740010251371,-158.79014089,0.00014553,2]
[353752185,1740010251381,-158.79014089,0.00014553,2]
[353752186,1740010251392,-158.79014089,0.00014553,2]
[353752187,1740010251401,-158.79014089,0.00014553,2]
[353752188,1740010251411,-158.79014089,0.00014553,2]
[353752189,1740010251421,-158.79014089,0.00014553,2]
[353752190,1740010251431,-158.79014089,0.00014553,2]
[353752191,1740010251441,-158.79,0.00014553,2]
[353752192,1740010251451,-474.65673504,0.00014594,2]
[353752193,1740010251461,-2148.0607651,0.00014601,2]
[353752194,1740010251471,-500.0,0.00014602,2]
[353752195,1740010251481,-500.0,0.00014602,2]
[353752196,1740010251491,-500.0,0.00014602,2]
[353752197,1740010251501,-500.0,0.00014602,2]
[353752198,1740010251511,-789.43,0.00014602,2]
[353752199,1740010251521,-4092.36,0.00014602,2]
[353752200,1740010251535,-12866.34,0.00014602,2]
[353752201,1740010251545,-500.0,0.00014602,2]
[353752202,1740010251556,-500.0,0.00014602,2]
[353752203,1740010251567,-500.0,0.00014602,2]
[353752204,1740010251577,-500.0,0.00014602,2]
[353752205,1740010251587,-671.53,0.00014602,2]
[353752206,1740010251596,-583.34,0.00014602,2]
[353752207,1740010251606,-969.4,0.00014602,2]
[353752208,1740010251617,-1702.23,0.00014602,2]
[353752209,1740010251626,-1017.11,0.00014602,2]
[353752210,1740010251637,-1044.34,0.00014602,2]
[353752211,1740010251647,-538.86,0.00014602,2]
[353752212,1740010251657,-500.0,0.00014602,2]
[353752213,1740010251667,-472.30999994,0.00014602,2]
[353752214,1740010251678,-513.35,0.00014602,2]
[353752215,1740010251688,-500.0,0.00014602,2]
[353752216,1740010251698,-531.17,0.00014602,2]
[353752217,1740010251708,-551.5,0.00014602,2]
[353752218,1740010251718,-1250.49,0.00014602,2]
[353752219,1740010251728,-500.0,0.00014602,2]
[353752220,1740010251739,-4536.63,0.00014602,2]
[353752221,1740010251749,-500.0,0.00014602,2]
[353752222,1740010251760,-612.608067,0.00014602,2]
[353752223,1740010251785,-500.0,0.00014602,2]
[353752224,1740010251794,-1184.6,0.00014602,2]
[353752225,1740010251805,-612.608067,0.00014602,2]
[353752226,1740010251816,-1054.85,0.00014602,2]
[353752227,1740010251826,-698.44,0.00014602,2]
[353752228,1740010251836,-692.95,0.00014602,2]
[353752229,1740010251846,-500.0,0.00014602,2]
[353752230,1740010251856,-545.33,0.00014602,2]
[353752231,1740010251866,-206.916301,0.00014653,2]
[353752232,1740010251876,-206.916301,0.00014653,2]
[353752233,1740010251886,-897.731421,0.00014653,2]
[353752234,1740010251896,-897.731421,0.00014653,2]
[353752235,1740010251906,-1049.066856,0.00014653,2]
[353752236,1740010251916,-1049.066856,0.00014653,2]
[353752237,1740010251926,-218.184773,0.00014653,2]
[353752238,1740010251937,-624.0,0.00014653,2]
[353752239,1740010251947,-624.0,0.00014653,2]
[353752240,1740010251957,-624.0,0.00014653,2]
[353752241,1740010251967,-624.0,0.00014653,2]
[353752242,1740010251977,-624.0,0.00014653,2]
[353752243,1740010251988,-624.0,0.00014653,2]
[353752244,1740010251998,-624.0,0.00014653,2]
[353752245,1740010252009,-624.0,0.00014653,2]
[353752246,1740010252020,-624.0,0.00014653,2]
[353752247,1740010252031,-624.0,0.00014653,2]
[353752248,1740010252041,-624.0,0.00014653,2]
[353752249,1740010252051,-624.0,0.00014653,2]
[353752250,1740010252062,-624.0,0.00014653,2]
[353752251,1740010252071,-624.0,0.00014653,2]
[353752252,1740010252082,-447.0,0.00014653,2]
[353752253,1740010252092,-447.0,0.00014653,2]
[353752254,1740010252102,-447.0,0.00014653,2]
[353752255,1740010252112,-447.0,0.00014653,2]
[353752256,1740010252123,-447.0,0.00014653,2]
[353752257,1740010252133,-447.0,0.00014653,2]
[353752258,1740010252143,-447.0,0.00014653,2]
[353752259,1740010252152,-447.0,0.00014653,2]
[353752260,1740010252163,-447.0,0.00014653,2]
[353752261,1740010252172,-447.0,0.00014653,2]
[353752262,1740010252183,-447.0,0.00014653,2]
[353752263,1740010252193,-447.0,0.00014653,2]
[353752264,1740010252203,-447.0,0.00014653,2]
[353752265,1740010252214,-447.0,0.00014653,2]
[353752266,1740010252225,-624.0,0.00014653,2]
[353752267,1740010252236,-624.0,0.00014653,2]
[353752268,1740010252247,-624.0,0.00014653,2]
[353752269,1740010252259,-624.0,0.00014653,2]
[353752270,1740010252270,-624.0,0.00014653,2]
[353752271,1740010252281,-624.0,0.00014653,2]
[353752272,1740010252292,-624.0,0.00014653,2]
[353752273,1740010252302,-624.0,0.00014653,2]
[353752274,1740010252311,-624.0,0.00014653,2]
[353752275,1740010252321,-624.0,0.00014653,2]
[353752276,1740010252331,-624.0,0.00014653,2]
[353752277,1740010252341,-624.0,0.00014653,2]
[353752278,1740010252351,-624.0,0.00014653,2]
[353752279,1740010252361,-624.0,0.00014653,2]
[353752280,1740010252371,-447.0,0.00014653,2]
[353752281,1740010252381,-447.0,0.00014653,2]
[353752282,1740010252391,-447.0,0.00014653,2]
[353752283,1740010252401,-447.0,0.00014653,2]
[353752284,1740010252411,-447.0,0.00014653,2]
[353752285,1740010252420,-447.0,0.00014653,2]
[353752286,1740010252430,-447.0,0.00014653,2]
[353752287,1740010252441,-447.0,0.00014653,2]
[353752288,1740010252451,-447.0,0.00014653,2]
[353752289,1740010252462,-447.0,0.00014653,2]
[353752290,1740010252473,-447.0,0.00014653,2]
[353752291,1740010252484,-447.0,0.00014653,2]
[353752292,1740010252494,-447.0,0.00014653,2]
[353752293,1740010252506,-447.0,0.00014653,2]
[353752294,1740010252517,-624.0,0.00014653,2]
[353752295,1740010252531,-624.0,0.00014653,2]
[353752296,1740010252542,-624.0,0.00014653,2]
[353752297,1740010252552,-624.0,0.00014653,2]
[353752298,1740010252563,-624.0,0.00014653,2]
[353752299,1740010252575,-624.0,0.00014653,2]
[353752300,1740010252584,-624.0,0.00014653,2]
[353752301,1740010252595,-624.0,0.00014653,2]
[353752302,1740010252606,-624.0,0.00014653,2]
[353752303,1740010252616,-624.0,0.00014653,2]
[353752304,1740010252625,-447.0,0.00014653,2]
[353752305,1740010252635,-447.0,0.00014653,2]
[353752306,1740010252645,-447.0,0.00014653,2]
[353752307,1740010252655,-447.0,0.00014653,2]
[353752308,1740010252666,-447.0,0.00014653,2]
[353752309,1740010252676,-447.0,0.00014653,2]
[353752310,1740010252687,-447.0,0.00014653,2]
[353752311,1740010252818,-447.0,0.00014653,2]
[353752312,1740010252829,-447.0,0.00014653,2]
[353752313,1740010252838,-447.0,0.00014653,2]
[353752314,1740010252848,-624.0,0.00014653,2]
[353752315,1740010252858,-624.0,0.00014653,2]
[353752316,1740010252868,-624.0,0.00014653,2]
[353752317,1740010252878,-624.0,0.00014653,2]
[353752318,1740010252888,-624.0,0.00014653,2]
[353752319,1740010252897,-624.0,0.00014653,2]
[353752320,1740010252907,-624.0,0.00014653,2]
[353752321,1740010252917,-624.0,0.00014653,2]
[353752322,1740010252927,-624.0,0.00014653,2]
[353752323,1740010252937,-624.0,0.00014653,2]
[353752324,1740010252947,-624.0,0.00014653,2]
[353752325,1740010252958,-624.0,0.00014653,2]
[353752326,1740010252969,-624.0,0.00014653,2]
[353752327,1740010252979,-624.0,0.00014653,2]
[353752328,1740010252989,-624.0,0.00014653,2]
[353752329,1740010252999,-624.0,0.00014653,2]
[353752330,1740010253009,-624.0,0.00014653,2]
[353752331,1740010253019,-447.0,0.00014653,2]
[353752332,1740010253028,-447.0,0.00014653,2]
[353752333,1740010253038,-447.0,0.00014653,2]
[353752334,1740010253048,-447.0,0.00014653,2]
[353752335,1740010253057,-447.0,0.00014653,2]
[353752336,1740010253067,-447.0,0.00014653,2]
[353752337,1740010253076,-447.0,0.00014653,2]
[353752338,1740010253086,-447.0,0.00014653,2]
[353752339,1740010253096,-447.0,0.00014653,2]
[353752340,1740010253107,-447.0,0.00014653,2]
[353752341,1740010253117,-447.0,0.00014653,2]
[353752342,1740010253127,-447.0,0.00014653,2]
[353752343,1740010253136,-447.0,0.00014653,2]
[353752344,1740010253146,-447.0,0.00014653,2]
[353752345,1740010253155,-447.0,0.00014653,2]
[353752346,1740010253164,-447.0,0.00014653,2]
[353752347,1740010253174,-447.0,0.00014653,2]
[353752348,1740010253184,-624.0,0.00014653,2]
[353752349,1740010253193,-624.0,0.00014653,2]
[353752350,1740010253203,-624.0,0.00014653,2]
[353752351,1740010253213,-624.0,0.00014653,2]
[353752352,1740010253223,-624.0,0.00014653,2]
[353752353,1740010253232,-624.0,0.00014653,2]
[353752354,1740010253241,-624.0,0.00014653,2]
[353752355,1740010253250,-624.0,0.00014653,2]
[353752356,1740010253260,-624.0,0.00014653,2]
[353752357,1740010253270,-624.0,0.00014653,2]
[353752358,1740010253279,-624.0,0.00014653,2]
[353752359,1740010253288,-624.0,0.00014653,2]
[353752360,1740010253299,-624.0,0.00014653,2]
[353752361,1740010253309,-624.0,0.00014653,2]
[353752362,1740010253318,-447.0,0.00014653,2]
[353752363,1740010253327,-447.0,0.00014653,2]
[353752364,1740010253337,-447.0,0.00014653,2]
[353752365,1740010253346,-447.0,0.00014653,2]
[353752366,1740010253356,-447.0,0.00014653,2]
[353752367,1740010253365,-447.0,0.00014653,2]
[353752368,1740010253375,-447.0,0.00014653,2]
[353752369,1740010253384,-447.0,0.00014653,2]
[353752370,1740010253395,-447.0,0.00014653,2]
[353752371,1740010253404,-447.0,0.00014653,2]
[353752372,1740010253415,-447.0,0.00014653,2]
[353752373,1740010253425,-447.0,0.00014653,2]
[353752374,1740010253434,-447.0,0.00014653,2]
[353752375,1740010253444,-447.0,0.00014653,2]
[353752376,1740010253454,-624.0,0.00014653,2]
[353752377,1740010253463,-624.0,0.00014653,2]
[353752378,1740010253472,-624.0,0.00014653,2]
[353752379,1740010253482,-624.0,0.00014653,2]
[353752380,1740010253491,-624.0,0.00014653,2]
[353752381,1740010253500,-624.0,0.00014653,2]
[353752382,1740010253510,-624.0,0.00014653,2]
[353752383,1740010253520,-624.0,0.00014653,2]
[353752384,1740010253532,-624.0,0.00014653,2]
[353752385,1740010253541,-624.0,0.00014653,2]
[353752386,1740010253551,-624.0,0.00014653,2]
[353752387,1740010253561,-624.0,0.00014653,2]
[353752388,1740010253571,-624.0,0.00014653,2]
[353752389,1740010253582,-624.0,0.00014653,2]
[353752390,1740010253591,-447.0,0.00014653,2]
[353752391,1740010253601,-447.0,0.00014653,2]
[353752392,1740010253611,-447.0,0.00014653,2]
[353752393,1740010253620,-447.0,0.00014653,2]
[353752394,1740010253630,-447.0,0.00014653,2]
[353752395,1740010253640,-447.0,0.00014653,2]
[353752396,1740010253650,-447.0,0.00014653,2]
[353752397,1740010253660,-447.0,0.00014653,2]
[353752398,1740010253670,-447.0,0.00014653,2]
[353752399,1740010253680,-447.0,0.00014653,2]
[353752400,1740010253691,-447.0,0.00014653,2]
[353752401,1740010253700,-447.0,0.00014653,2]
[353752402,1740010253710,-447.0,0.00014653,2]
[353752403,1740010253719,-447.0,0.00014653,2]
[353752404,1740010253729,-624.0,0.00014653,2]
[353752405,1740010253738,-624.0,0.00014653,2]
[353752406,1740010253748,-624.0,0.00014653,2]
[353752407,1740010253757,-624.0,0.00014653,2]
[353752408,1740010253767,-624.0,0.00014653,2]
[353752409,1740010253777,-624.0,0.00014653,2]
[353752410,1740010253786,-624.0,0.00014653,2]
[353752411,1740010253795,-624.0,0.00014653,2]
[353752412,1740010253805,-624.0,0.00014653,2]
[353752413,1740010253815,-624.0,0.00014653,2]
[353752414,1740010253824,-624.0,0.00014653,2]
[353752415,1740010253834,-624.0,0.00014653,2]
[353752416,1740010253843,-624.0,0.00014653,2]
[353752417,1740010253853,-624.0,0.00014653,2]
[353752418,1740010253863,-447.0,0.00014653,2]
[353752419,1740010253873,-447.0,0.00014653,2]
[353752420,1740010253882,-447.0,0.00014653,2]
[353752421,1740010253892,-447.0,0.00014653,2]
[353752422,1740010253901,-447.0,0.00014653,2]
[353752423,1740010253911,-447.0,0.00014653,2]
[353752424,1740010253921,-447.0,0.00014653,2]
[353752425,1740010253930,-447.0,0.00014653,2]
[353752426,1740010253940,-447.0,0.00014653,2]
[353752427,1740010253950,-447.0,0.00014653,2]
[353752428,1740010253961,-447.0,0.00014653,2]
[353752429,1740010253973,-447.0,0.00014653,2]
[353752430,1740010253982,-447.0,0.00014653,2]
[353752431,1740010253992,-447.0,0.00014653,2]
[353752432,1740010254001,-13275.53870192,0.00014657,2]
[353752433,1740010254011,-404.4072025,0.00014673,2]
[353752434,1740010254022,-500.0,0.00014673,2]
[353752435,1740010254034,-500.0,0.00014673,2]
[353752436,1740010254044,-500.0,0.00014673,2]
[353752437,1740010254053,-244.052745,0.00014684,2]
[353752438,1740010254063,-244.052745,0.00014684,2]
[353752439,1740010254073,-1460.899831,0.00014684,2]
[353752440,1740010254083,-1460.899831,0.00014684,2]
[353752441,1740010254092,-500.0,0.00014684,2]
[353752442,1740010254102,-500.0,0.00014684,2]
[353752443,1740010254112,-500.0,0.00014684,2]
[353752444,1740010254123,-500.0,0.00014684,2]
[353752445,1740010254133,-789.43,0.00014684,2]
[353752446,1740010254144,-151.0,0.00014684,2]
[353752447,1740010254156,-151.0,0.00014684,2]
[353752448,1740010254167,-4092.36,0.00014684,2]
[353752449,1740010254177,-12866.34,0.00014684,2]
[353752450,1740010254187,-500.0,0.00014684,2]
[353752451,1740010254196,-500.0,0.00014684,2]
[353752452,1740010254205,-500.0,0.00014684,2]
[353752453,1740010254215,-500.0,0.00014684,2]
[353752454,1740010254225,-671.53,0.00014684,2]
[353752455,1740010254235,-474.003563,0.00014684,2]
[353752456,1740010254244,-474.003563,0.00014684,2]
[353752457,1740010254254,-583.34,0.00014684,2]
[353752458,1740010254264,-969.4,0.00014684,2]
[353752459,1740010254274,-1702.23,0.00014684,2]
[353752460,1740010254284,-1017.11,0.00014684,2]
[353752461,1740010254295,-1044.34,0.00014684,2]
[353752462,1740010254305,-538.86,0.00014684,2]
[353752463,1740010254315,-500.0,0.00014684,2]
[353752464,1740010254326,-513.35,0.00014684,2]
[353752465,1740010254336,-500.0,0.00014684,2]
[353752466,1740010254345,-531.17,0.00014684,2]
[353752467,1740010254355,-551.5,0.00014684,2]
[353752468,1740010254365,-1250.49,0.00014684,2]